Cogmind - Beta 13 *** ADVENTURER MODE // 2024.05.15 @ 21:15:38 Player: Bert Result: Self-destructed Performance ------------- Evolutions (1) 500 Regions Visited (2) 400 Robots Destroyed (6) 30 Value Destroyed (116) 116 Prototype IDs (1) 20 Alien Tech Used (0) 0 Bonus (0) 0 TOTAL SCORE: 1066 Bonus ------- None Cogmind --------- Core Integrity 346/400 Matter 207/300 Energy 250/250 System Corruption 0% Temperature Warm (141) Movement Rolling (100) Ox1 Location -9/Materials Parts ------- > --- POWER (1) -------- Ion Engine > --- PROPULSION (3) --- Wheel Armored Wheel > --- UTILITY (3) ------ Small Storage Unit Medium Armor Plating > --- WEAPON (2) ------- Medium Laser Advanced Beam Cannon > --- INVENTORY (8) ---- Ion Engine Light Ion Engine Wheel Wheel Medium Storage Unit Small Laser Assault Rifle Light Assault Rifle Peak State ------------ > --- POWER ------------ Ion Engine > --- PROPULSION ------- Wheel Wheel Armored Wheel > --- UTILITY ---------- Small Storage Unit Medium Armor Plating > --- WEAPON ----------- Medium Laser Advanced Beam Cannon > --- INVENTORY -------- Ion Engine Light Ion Engine Wheel Wheel Medium Storage Unit Small Laser Assault Rifle Light Assault Rifle [Rating: 12] Favorites ----------- Power Ion Engine Engine Ion Engine Propulsion Wheel Wheel Wheel Utility Small Storage Unit Storage Small Storage Unit Protection Medium Armor Plating Weapon Medium Laser Energy Gun Medium Laser Energy Cannon Advanced Beam Cannon Ballistic Gun Light Assault Rifle Build | -11 -10 -9 ------- Run | Yrd Mat Mat Slots Evolved 2 | . . 2 Power . | . . . Propulsion 1 | . . 1 Utility 1 | . . 1 Weapon . | . . . Parts Attached 11 | 6 2 3 Power 1 | 1 . . Engine 1 | 1 . . Core . | . . . Reactor . | . . . Propulsion 4 | 2 . 2 Treads . | . . . Leg . | . . . Wheel 4 | 2 . 2 Hover . | . . . Flight . | . . . Utility 2 | 1 1 . Device . | . . . Storage 1 | 1 . . Processor . | . . . Hackware . | . . . Protection 1 | . 1 . Artifact . | . . . Weapon 4 | 2 1 1 Energy Gun 2 | 1 1 . Energy Cannon 1 | . . 1 Ballistic Gun 1 | 1 . . Ballistic Cannon . | . . . Launcher . | . . . Special Weapon . | . . . Impact Weapon . | . . . Slashing Weapon . | . . . Piercing Weapon . | . . . Special Melee Weapon . | . . . Unidentified Prototypes 1 | . . 1 Parts Lost 1 | . . 1 Power . | . . . Propulsion 1 | . . 1 Utility . | . . . Weapon . | . . . Highest Loss Streak 1 | . . 1 To Critical Strikes . | . . . Average Slot Usage (%) 90 | . 93 86 Engine 12 | . 14 11 Wheel 29 | . 28 31 Storage 12 | . 14 11 Protection 9 | . 8 11 Energy Gun 19 | . 26 11 Energy Cannon 5 | . . 10 Naked Turns . | . . . Heaviest Build 23 | 12 20 23 Greatest Support 32 | 20 20 32 Greatest Overweight (x) 1 | . . 1 Average Overweight (x) . | . . . Largest Inventory Capacity 8 | 8 8 8 Average Capacity 7 | 6 8 8 Most Carried 8 | 4 8 8 Average Carried 6 | 2 6 7 Final Capacity 8 | 8 8 8 Final Carried 8 | 4 8 8 Class Distribution -------------------- 100% | Mutant Dominant Class ---------------- Mutant | -10/Materials Mutant | -9/Materials Resources | -11 -10 -9 ----------- Run | Yrd Mat Mat Matter Collected 280 | 219 61 . Remotely . | . . . Salvage Created 163 | . 75 88 Parts 10 | . 9 1 Haulers Intercepted . | . . . Recyclers Shooed . | . . . Parts Field Recycled . | . . . Retrieved Matter . | . . . Parts Self-Destructed . | . . . Prevented . | . . . Kills | -11 -10 -9 ------- Run | Yrd Mat Mat Combat Hostiles Destroyed 4 | . 1 3 Guns 2 | . 1 1 Cannons 2 | . . 2 Classes Destroyed 5 | . 3 2 Worker 1 | . 1 . Watcher 1 | . 1 . Swarmer 2 | . . 2 Grunt 1 | . 1 . Sentry 1 | . . 1 Best Kill Streak 2 | . 2 2 Combat Bots Only 2 | . 1 2 Max Kills in Single Turn 1 | . 1 1 Gunslinging . | . . . Exploded . | . . . Melee . | . . . Uniques/NPCs Destroyed . | . . . Combat | -11 -10 -9 -------- Run | Yrd Mat Mat Hostile Shots Fired 52 | . 4 48 Missed 12 | . 1 11 Damage Taken 376 | . 25 351 Core 62 | . 8 54 Absorbed by Shields . | . . . Ignored by Resistances 110 | . 9 101 Core Remaining (%) 98 | 100 96 . Volleys Fired 24 | . 7 17 Largest 2 | . 2 1 Hottest 90 | . 90 68 Shots Fired 31 | . 14 17 Gun 27 | . 14 13 Cannon 4 | . . 4 Launcher . | . . . Special . | . . . Kinetic . | . . . Thermal 31 | . 14 17 Explosive . | . . . Electromagnetic . | . . . Robot Hit Streak 14 | . 6 14 Robot Miss Streak 3 | . 3 1 Penetration Max . | . . . Secondary Targets . | . . . Shots Hit Robots 24 | . 8 16 Core Hits 8 | . 4 4 Critical Kills . | . . . Critical Parts Destroyed . | . . . Critical Strikes 1 | . 1 . Burn 1 | . 1 . Melee Attacks . | . . . Impact . | . . . Slashing . | . . . Piercing . | . . . Sneak Attacks . | . . . Combat Hostiles . | . . . Follow-up Attacks . | . . . Damage Inflicted 351 | . 120 231 Guns 268 | . 120 148 Cannons 83 | . . 83 Explosions . | . . . Melee . | . . . Ramming . | . . . Kinetic . | . . . Thermal 351 | . 120 231 Explosive . | . . . Electromagnetic . | . . . Impact . | . . . Slashing . | . . . Piercing . | . . . Highest Corruption . | . . . Average Corruption . | . . . Corruption Purged . | . . . Corruption Blocked . | . . . Overload Shots . | . . . Overflow Damage . | . . . Projectiles . | . . . Explosions . | . . . Melee . | . . . Knockbacks . | . . . Impact . | . . . Kinetic . | . . . Secondary . | . . . Self-Inflicted Damage . | . . . Shots . | . . . Rammed . | . . . Targets Rammed . | . . . Kicked . | . . . Crushed . | . . . Highest Temperature 358 | . 117 358 Average Temperature 155 | . 57 227 Received Heat Transfer 162 | . 18 144 Effects 4 | . . 4 Shutdowns 1 | . . 1 Energy Bleed 1 | . . 1 Interference 1 | . . 1 Matter Decay 1 | . . 1 Siege Activations . | . . . Robots Corrupted . | . . . Combat Hostiles . | . . . Parts Fried . | . . . Impact Corruptions . | . . . Robots Melted . | . . . Combat Hostiles . | . . . Parts Melted 4 | . 1 3 Heat Transferred 976 | . 384 592 Parts Sabotaged . | . . . Parts Stolen . | . . . Parts Stripped . | . . . Power Chain Reactions . | . . . Alert | -11 -10 -9 ------- Run | Yrd Mat Mat Peak Influence 87 | . 36 87 Initial 12 | . . 12 Average 21 | . 22 27 Maximum Alert Level . | . . . Low Security (%) 100 | 100 100 100 Level 1 . | . . . Level 2 . | . . . Level 3 . | . . . Level 4 . | . . . Level 5 . | . . . High Security . | . . . Max Security . | . . . Squads Dispatched 1 | . . 1 Investigation . | . . . Extermination . | . . . Reinforcement 1 | . . 1 Assault . | . . . Garrison . | . . . Intercept . | . . . Searches Triggered . | . . . Construction Impeded . | . . . Haulers Reinforced . | . . . Active Scanning Responses . | . . . Cargo Convoy Interrupts . | . . . Stealth | -11 -10 -9 --------- Run | Yrd Mat Mat Distress Signals 1 | . . 1 Communications Jammed . | . . . Distress Signals . | . . . Times Spotted 10 | . 3 7 Peak Tracking Total 8 | . 1 8 Tactical Retreats . | . . . Traps | -11 -10 -9 ------- Run | Yrd Mat Mat Traps Triggered . | . . . Indirectly . | . . . Trap Hack Attempts . | . . . Triggered . | . . . Disarmed . | . . . Reprogrammed . | . . . Reused . | . . . Traps Extracted . | . . . Installed . | . . . Triggered . | . . . Machines | -11 -10 -9 ---------- Run | Yrd Mat Mat Machines Disabled . | . . . Max in Single Turn . | . . . Machines Repaired . | . . . Machines Dismantled . | . . . Machines Sabotaged . | . . . Overloaded Fab Kills . | . . . Hacking | -11 -10 -9 --------- Run | Yrd Mat Mat Machines Accessed 4 | . 2 2 Terminals 3 | . 2 1 Fabricators . | . . . Repair Stations . | . . . Recycling Units . | . . . Scanalyzers 1 | . . 1 Garrison Access . | . . . Total Hacks 6 | . 4 2 Successful 2 | . 1 1 Failed 4 | . 3 1 Catastrophic 2 | . 2 . Database Lockouts . | . . . Manual . | . . . Terminals 5 | . 4 1 Fabricators . | . . . Repair Stations . | . . . Recycling Units . | . . . Scanalyzers 1 | . . 1 Garrison Access . | . . . Terminal Hacks 2 | . 1 1 Terminal Index 1 | . 1 . Zone Layout 1 | . . 1 Fabricator Hacks . | . . . Repair Station Hacks . | . . . Recycling Unit Hacks . | . . . Scanalyzer . | . . . Garrison Access Hacks . | . . . Unauthorized Hacks . | . . . Terminals . | . . . Fabricators . | . . . Repair Stations . | . . . Recycling Units . | . . . Scanalyzers . | . . . Garrison Access . | . . . Data Cores Recovered . | . . . Used . | . . . Hacking Detections 3 | . 1 2 Full Trace Events . | . . . Feedback Events . | . . . Feedback Blocked . | . . . Robot Schematics Acquired . | . . . Robots Built . | . . . Authchips . | . . . Time . | . . . Total Robot Build Rating . | . . . Part Schematics Acquired . | . . . Parts Built . | . . . Authchips . | . . . Time . | . . . Total Part Build Rating . | . . . Parts Repaired . | . . . Time . | . . . Parts Recycled . | . . . Recycled Matter . | . . . Retrieved Matter . | . . . Retrieved Components . | . . . Parts Scanalyzed . | . . . Part Schematics Acquired . | . . . Parts Damaged . | . . . Bothacking | -11 -10 -9 ------------ Run | Yrd Mat Mat Used RIF Installer . | . . . Robots Hacked . | . . . Non-combat . | . . . Combat . | . . . Robot Hacks Applied . | . . . Relay Couplers Released . | . . . Fabnet Peak Effective % . | . . . Robots Rewired . | . . . Allies Hacked . | . . . Hacks Repelled . | . . . Allies | -11 -10 -9 -------- Run | Yrd Mat Mat Total Allies . | . . . Largest Group . | . . . Highest-Rated Group . | . . . Highest-Rated Ally . | . . . Total Orders . | . . . Ally Attacks . | . . . Total Damage . | . . . Kills . | . . . Allies Corrupted . | . . . Allies Melted . | . . . Intel | -11 -10 -9 ------- Run | Yrd Mat Mat Robot Analysis Total . | . . . Derelict Logs Recovered . | . . . Drone Launches . | . . . Drone Recoveries . | . . . Exploration | -11 -10 -9 ------------- Run | Yrd Mat Mat Turns Passed 435 | 65 189 181 Spaces Moved 433 | 63 201 169 Core 4 | 4 . . Treads . | . . . Legs . | . . . Wheels 429 | 59 201 169 Hover . | . . . Flight . | . . . Fastest Speed 50 | 50 80 80 Average Speed 80 | 78 80 81 Slowest Speed 100 | 80 80 100 Overloaded Moves . | . . . Propulsion Burnouts . | . . . Robots Hopped . | . . . Cave-ins Triggered . | . . . Exploration Rate (%) 17 | 4 25 22 Regions Visited 2 Branch Regions . Pre-discovered Areas . | . . . Known Exits Taken . | . . . Unknown Exits Taken 2 | 1 1 . Scrap Searched . | . . . Spaces Dug . | . . . Terrain Destroyed . | . . . Melee . | . . . Projectile . | . . . AOE . | . . . Terrain Rammed . | . . . Walls Destroyed . | . . . Machines Disabled . | . . . Actions | -11 -10 -9 --------- Run | Yrd Mat Mat Total 488 | 78 215 195 Wait . | . . . Move 431 | 62 200 169 Hop . | . . . Pick Up 18 | 10 5 3 Fast Attach . | . . . Attach 10 | 6 2 2 Detach 2 | . 1 1 Swap 1 | . . 1 Drop 2 | . . 2 Fire 24 | . 7 17 Melee . | . . . Ram . | . . . Kick . | . . . Crush . | . . . Escape Stasis . | . . . Rewire . | . . . Trap . | . . . Miscellaneous . | . . . Route ------- -11/Scrapyard -10/Materials (discovered 2 exits: *Mat / [*Min]) -9/Materials History --------- Turn | Location | Event 8 | -11/Scrapyard | Discovered new exit (range 15) 66 | -11/Scrapyard | Entered Materials 155 | -10/Materials | Discovered new exit (range 14) 217 | -10/Materials | Discovered new exit (range 8) 255 | -10/Materials | Entered another Materials area 255 | -9/Materials | Evolved 2 slots: Propulsion x1, Utility x1 301 | -9/Materials | Build established: Mutant 436 | -9/Materials | Self-destructed Last Messages --------------- 00404_ R-06 Scavenger collects Sensor Array. 00407_ R-06 Scavenger collects Hover Unit. 00409_ Y-45 Defender heat damages Heat Sink. 00409_ Wheel destroyed. 00411_ R-06 Scavenger collects Lgt. Ion Engine. 00417_ Overheating: Energy bleed (-50). 00417_ Lgt. Armor Plating melted. 00417_ Beam Rifle melted. 00417_ Hvy. Assault Rifle melted. 00417_ Y-45 Defender destroyed. 00419_ S-10 Pest destroyed. 00419_ K-01 Serf collects debris. 00423_ Power failure, Ion Engine shutdown. 00423_ Overheating: Matter decay (-68). 00423_ R-06 Scavenger collects Lgt. Assault Rifle. 00425_ Overheating: System interference. 00425_ Med. Laser temporarily disabled. 00427_ K-01 Serf collects debris. 00428_ R-06 Scavenger collects Flight Unit. 00432_ K-01 Serf collects debris. Map ----- +----------------------------------------------------+ | # "T" #???? | | # #???? | | ## T #???? | | ?# """ ##################### #???? | | ?# """ #???????????????????# #???? | | ?# """ ##################### #???? | | ?# """ #???? | | ?# """ #???? | | ?# ##+############ """ #???? | | ?## # #??????############### #????? | | ??# # #????????????????????# #????? | | ??# # """#????????????????????# !! #????? | | ??# # """#????????????????????+ ![ #????? | | ??# #! """#????????????????????# ![ #????? | | ??# # #????????????????????# #????? | | ??# ########????????????????????# #????? | | ??# #?# #???????????????????????# ### #????? | | ??# #?# #???????????????????????# #?? #????? | | ??# ????????????????#######?????# #??? #????? | | ??# ????????????????# ####### #???? #????? | | ??#???????????????????# #?????#????? | | ??????????????????????# #??????????? | | ??????????????????????# #??????????? | | ??????????????????????# ###+#######??????????? | | ??????????????????????## ## #??????????? | | ???????????????????????# @ ## #??????????? | | ???????????????????????# ## "Y" #??????????? | | ????????????????######## ## """ #??????????? | | ????????????????# ############??????????? | | ?????????????#### #?????????????????????? | | ?????? #?????????????????????? | | ??????????############## #?????????????????????? | | ???????????????????????# #?????????????????????? | | ???????????????????????# #?????????????????????? | | ???????????????????????# #?????????????????????? | | ???????????????????????# #?????????????????????? | | ???????????????????????#u #?????????????????????? | | ???????????????????????# #?????????????????????? | | ???????????????????????# #?????????????????????? | | ???????????????????????#g% #?????????????????????? | | ???????????????????????# rY#?????????????????????? | | ???????????????????????# %#?????????????????????? | | ??????????????????????? %?????????????????????? | | ??????????????????????? ????????????????????? | | ??????????????????????? ???????????????????? | | ???????????????????????##### ??????????????????? | | ????????????????????????????# ?????????????????? | | ????????????????????????????? ?????????????????? | | ?????????????????????????????? #????????????????? | | ?????????????????????????????? #????????????????? | +----------------------------------------------------+ Best States ------------- Heat Dissipation 28 Energy Generation 10 Energy Capacity 250 Matter Stores 300 Matter Capacity 300 Sight Range 16 Terrain Scan Density 10 Armor Coverage 225 Resistance: KI 20 Resistance: TH 20 Resistance: EX 20 Resistance: EM 20 Resistance: I 20 Resistance: S 20 Resistance: P 20 Evasion (%) 44 Offensive Hacking 10 Item Schematics ----------------- None Robot Schematics ------------------ None Fabricated ------------ Nothing Alien Tech Used ----------------- None Achievements -------------- None Challenges ------------ None Game ------ Seed AerolevHoverDatajack Manual? 0 Play Time 00:06:40 Cumulative 21.7 hours Start 2024.05.15 @ 21:10:58 End 2024.05.15 @ 21:15:38 Sessions 1 Manual Loads 0 Difficulty Adventurer Special Mode None Game No. 43 Rogue 0 Adventurer 43 Explorer 0 Win Type - Total 0 Types 0/0/0/0/0/0/0/0/0 Lore% 29 Gallery% 32 Achievement% 23 Wizard Run 0 Options --------- Layout 0 ASCII 0 Keyboard 1 Movement Numpad Keybinds 0 Fullscreen 1 Font 18/SmallcapsGlow Map View 76x50 Zoom Use 0% Tactical HUD 1 Map Filters NONE Filters NONE Steam 1 RUN: 4662b375-afc4-4f80-8509-0e60f66fa75e